[Event "31st Kavala Open-A 2022"]
[Site "Kavala"]
[Date "2022.08.01"]
[Round "8.14"]
[White "Priyanka Nutakki"]
[Black "Tsaknakis, Zisis"]
[Result "1-0"]
[ECO "D37"]
[WhiteElo "2308"]
[BlackElo "2266"]
[Annotator "TA"]
[PlyCount "69"]
[EventDate "2022.07.27"]
[EventType "swiss"]
[EventCountry "GRE"]
[SourceTitle "playchess.com"]
[Source "ChessBase"]
[SourceQuality "1"]
[TimeControl "40/5400+30:1800+30"]

{[%evp 9,68,18,20,17,34,35,30,30,28,27,31,9,23,23,28,11,25,22,24,14,25,25,183,192,184,168,178,179,192,158,200,200,273,280,257,236,248,191,433,445,456,487,474,460,585,584,582,446,440,448,566,568,557,543,541,539,1362,1370,1887,1756,29999]} 1. d4 {[%emt 0:07:36]} d5 {[%emt 0:00:22]} 2. c4 {[%emt 0:00:37]} e6 {[%emt 0:00:07]} 3. Nf3 {[%emt 0:00:37]} Nf6 {[%emt 0:00:08]} 4. Nc3 {[%emt 0:00:12]} a6 {[%emt 0:00:08]} 5. cxd5 {[%emt 0:00:39]} exd5 {[%emt 0:00:03]} 6. Bg5 {[%emt 0:00:14] D37: Queen's Gambit Declined: 5 Bf4.} Be6 {[%emt 0:00:13]} 7. e3 {[%emt 0:00:27]} Nbd7 {[%emt 0:00:21]} 8. Bd3 {[%emt 0:00:34] White has an edge.} Bd6 {[%emt 0:00:22]} 9. O-O {[%emt 0:00:40]} c6 {[%emt 0:00:31] 9...c6 scores better than 9...0-0.} 10. Rc1 {[%emt 0:05:18]} O-O {[%emt 0:07:02]} 11. h3 {[%emt 0:08:58]} h6 {[%emt 0:02:24]} 12. Bh4 {[%emt 0:01:45]} Qc7 {[%emt 0:07:24]} 13. Qe1 {[%emt 0:02:51]} Rfe8 {[%emt 0:02:21]} 14. Nd2 {[%emt 0:22:26] [#]} Nh7 $146 {[%emt 0:22:25]} ({Predecessor:} 14... Qd8 15. f4 Nf8 16. Nf3 Be7 17. g4 c5 18. f5 Bc8 19. Bxf6 Bxf6 20. dxc5 Bd7 {1-0 (54) Karthik,V (2480)-Garcia Martin,M (2323) Prague 2022}) 15. f4 {[%emt 0:09:12][%cal Bf2f4,Bf4f5][%mdl 32] And now f5 would win.} Ndf6 $2 {[%emt 0:02:54] A mistake that costs the game.} (15... f5 $1 $11 {and Black is okay.}) 16. Bxh7+ $18 {[%emt 0:02:18]} Nxh7 {[%emt 0:08:28]} 17. f5 {[%emt 0:00:00]} Bd7 {[%emt 0:00:02] [#]} (17... Bh2+ $2 18. Kh1) 18. Nxd5 {[%emt 0:00:00][%mdl 512]} Qa5 {[%emt 0:02:43]} (18... Bh2+ 19. Kh1) 19. Nc3 {[%emt 0:01:18]} b5 {[%emt 0:04:07]} 20. a3 {[%emt 0:07:53]} Qb6 {[%emt 0:00:48]} 21. Nce4 {[%emt 0:02:51] Inhibits c5.} Bf8 {[%emt 0:06:02]} 22. Qg3 {[%emt 0:01:29]} Qb8 {[%emt 0:04:56]} 23. Qg4 {[%emt 0:04:08]} g6 $2 {[%emt 0:07:33] [#]} (23... c5 24. Nxc5 Bxc5) 24. Rxc6 $3 {[%emt 0:12:02][%mdl 512]} Bg7 {[%emt 0:14:48] [#]} (24... Bxc6 25. fxg6 Kh8 26. gxh7) (24... Kh8 25. Bg3) 25. Rxg6 {[%emt 0:00:22][%mdl 512]} fxg6 {[%emt 0:00:00]} 26. Qxg6 {[%emt 0:08:15]} Rxe4 {[%emt 0:02:09]} 27. f6 {[%emt 0:00:00][%csl Gf6][%cal Rg6g7][%mdl 64] Pin} (27. Nxe4 Qe8 28. Qg4 Kh8 $18) 27... Re7 28. f7+ {[%emt 0:05:37]} ({Don't blunder} 28. fxg7 $2 Rxg7 29. Qe4 Bxh3 30. Qd5+ Kh8 $19) 28... Kh8 {[%emt 0:00:00]} 29. Bxe7 {[%emt 0:05:46]} Qc7 {[%emt 0:03:51]} 30. Bd6 {[%emt 0:00:16]} Qc6 {[%emt 0:01:02]} 31. Nf3 {[%emt 0:03:24]} Nf8 {[%emt 0:01:18]} 32. Qg3 {[%emt 0:00:53] Strongly threatening Nh4.} Bf5 {[%emt 0:01:16]} 33. Nh4 {[%emt 0:00:17]} ({Weaker is} 33. Ne5 Qxd6 34. Rxf5 Rc8 $16) 33... Bd3 {[%emt 0:01:59]} 34. Be5 {[%emt 0:00:00]} Bxe5 {[%emt 0:00:00]} 35. Qg8# {Weighted Error Value: White=0.07 (flawless) /Black=0.61} 1-0

[Event "31st Kavala Open-A 2022"]
[Site "Kavala"]
[Date "2022.08.01"]
[Round "8.15"]
[White "Charkhalashvili, Inga"]
[Black "Stefanou, Dimitrios"]
[Result "1/2-1/2"]
[ECO "A32"]
[WhiteElo "2276"]
[BlackElo "2184"]
[Annotator "TA"]
[PlyCount "57"]
[EventDate "2022.07.27"]
[EventType "swiss"]
[EventCountry "GRE"]
[SourceTitle "playchess.com"]
[Source "ChessBase"]
[SourceQuality "1"]
[TimeControl "40/5400+30:1800+30"]

{[%evp 12,57,8,1,35,7,34,32,47,40,50,63,60,22,32,5,31,-33,-40,-104,-110,-112,-121,-114,-106,-152,-142,-128,-134,-153,-137,-107,-60,-38,0,0,0,-85,-75,-82,-27,-27,0,-92,0,-22,0,-91]} 1. d4 {[%emt 0:00:03]} Nf6 {[%emt 0:00:23]} 2. c4 {[%emt 0:00:07]} e6 {[%emt 0:00:09]} 3. Nf3 {[%emt 0:00:14]} c5 {[%emt 0:00:16]} 4. Nc3 {[%emt 0:01:18]} cxd4 {[%emt 0:00:16]} 5. Nxd4 {[%emt 0:00:07]} d5 {[%emt 0:00:10]} 6. e3 {[%emt 0:00:53]} dxc4 {[%emt 0:01:42]} 7. Bxc4 {[%emt 0:00:28] [#]} Qc7 $146 {[%emt 0:04:09] A32: Symmetrical English: 2 Nf3 Nf6 3 d4 cxd4 4 Nxd4 e6.} ({Predecessor:} 7... a6 8. a4 Bd6 9. b3 O-O 10. O-O Bd7 11. Ba3 Bxa3 12. Rxa3 Nc6 13. Nxc6 Bxc6 14. Qxd8 Rfxd8 15. Raa1 {½-½ (42) Inarkiev,E (2732)-Grischuk,A (2752) Novosibirsk 2016}) 8. Be2 {[%emt 0:03:48]} a6 {[%emt 0:01:35] Against Ndb5} 9. Bd2 {[%emt 0:01:38]} e5 {[%emt 0:06:41] [#] White is slightly better.} 10. Rc1 $1 {[%emt 0:02:46][%cal Oc3b5]} Qd8 $1 {[%emt 0:05:01]} (10... exd4 $2 11. Nb5 $1 {[%mdl 512]} Qd7 12. Nc7+ Kd8 13. Nxa8 $18) 11. Nb3 {[%emt 0:04:44]} Nc6 {[%emt 0:03:04]} 12. Na4 {[%emt 0:06:37]} Bd6 {[%emt 0:06:22]} 13. Nac5 {[%emt 0:02:35]} Qe7 {[%emt 0:11:45]} 14. e4 {[%emt 0:07:12]} (14. O-O $14) 14... O-O $15 {[%emt 0:07:09]} 15. Bg5 {[%emt 0:04:06]} ({White should play} 15. O-O $15) 15... Rd8 $17 {[%emt 0:04:04]} 16. Qc2 {[%emt 0:03:14] [#]} a5 $1 {[%emt 0:06:38] And now ...a4 would win.} 17. Bb5 {[%emt 0:18:26]} Nb4 {[%emt 0:04:15]} 18. Qb1 {[%emt 0:01:31]} (18. Qe2 $142) 18... Bxc5 {[%emt 0:09:58]} 19. Nxc5 {[%emt 0:00:48]} b6 {[%emt 0:01:09]} 20. Nb3 {[%emt 0:08:21]} Be6 {[%emt 0:02:55][%cal Ob4a2] aiming for ...Nxa2!} 21. Rc3 {[%emt 0:02:45] [#]} a4 {[%emt 0:02:16]} ({Black should try} 21... Nxa2 $1 $17 {[%mdl 512]} 22. Qxa2 a4) 22. Nc1 $15 {[%emt 0:01:25]} Ra5 {[%emt 0:04:09]} (22... h6 $5 {[%cal Rh6g5]} 23. Bxf6 Qxf6 $15) 23. Be2 {[%emt 0:00:30]} h6 {[%emt 0:00:55]} 24. Bxf6 {[%emt 0:00:10]} (24. Be3 $1 $11 {keeps the balance.} Qb7 25. f3) 24... Qxf6 $17 {[%emt 0:00:38]} ({Much weaker is} 24... gxf6 25. a3 $11) 25. O-O {[%emt 0:02:37]} Bd7 {[%emt 0:07:09]} (25... Rc5 $17 {White must now prevent ...Rd2.} 26. a3 Nc6) 26. Bc4 {[%emt 0:04:25]} Be6 {[%emt 0:03:42]} (26... Bb5 $11) 27. Be2 {[%emt 0:07:16]} Bd7 {[%emt 0:00:43]} ({Better is} 27... Rc5 $17 {Hoping for ...Rd2.} 28. a3 Nc6) 28. Bc4 $11 {[%emt 0:00:27]} Be6 {[%emt 0:00:06]} (28... Bb5 $11) 29. Be2 {[%emt 0:00:12] Weighted Error Value: White=0.20 (precise) /Black=0.19 (very precise)} 1/2-1/2

[Event "31st Kavala Open-A 2022"]
[Site "Kavala"]
[Date "2022.08.01"]
[Round "8.16"]
[White "Apostolakakis, Konstantinos"]
[Black "Kalogridis, Antonios"]
[Result "1/2-1/2"]
[ECO "B13"]
[WhiteElo "2072"]
[BlackElo "2272"]
[Annotator "TA"]
[PlyCount "159"]
[EventDate "2022.07.27"]
[EventType "swiss"]
[EventCountry "GRE"]
[SourceTitle "playchess.com"]
[Source "ChessBase"]
[SourceQuality "1"]
[TimeControl "40/5400+30:1800+30"]

{[%evp 11,159,15,27,9,8,10,14,7,16,0,0,0,-12,-11,0,0,0,0,13,0,10,0,7,0,0,-14,-4,-13,-21,-52,-41,-97,-97,-119,-81,-67,-62,-121,-81,-91,-90,-95,-95,-104,-102,-97,-92,-87,-57,-64,-35,-35,-31,-79,-75,-75,-71,-86,-72,-81,-63,-62,0,-85,0,-64,-64,-66,-65,-74,-62,-62,-62,-62,-62,-62,-58,-58,-53,-62,-59,-68,-69,-69,-69,-69,-69,-72,-53,-64,-65,-72,-62,-67,-64,-64,-64,-64,-64,-64,-57,-70,-56,-72,-57,-72,-72,-72,-58,-72,-64,-64,-65,-72,-72,-72,-15,-15,-15,-15,0,0,0,-8,-8,-8,0,0,0,0,0,-8,0,0,0,0,0,0,0,0,0,0,0,0,0,0,0,0,0,0]} 1. e4 {[%emt 0:05:25]} c6 {[%emt 0:00:03]} 2. d4 {[%emt 0:00:07]} d5 {[%emt 0:00:02]} 3. exd5 {[%emt 0:00:32]} cxd5 {[%emt 0:00:04]} 4. Bd3 {[%emt 0:00:16]} Nf6 {[%emt 0:00:04]} 5. c3 {[%emt 0:01:33]} Bg4 {[%emt 0:00:03]} 6. Qb3 {[%emt 0:03:38]} Qc7 {[%emt 0:00:01]} 7. Ne2 {[%emt 0:03:58] B13: Caro-Kann: Exchange Variation and Panov-Botvinnik Attack.} Bxe2 {[%emt 0:00:05]} 8. Bxe2 {[%emt 0:00:09][%cal Oc1f4]} e6 {[%emt 0:00:24]} 9. Nd2 {[%emt 0:03:41]} Bd6 {[%emt 0:00:26] [#]} 10. h3 $146 {[%emt 0:06:06]} ({Predecessor:} 10. Nf3 Nc6 11. g3 h5 12. Be3 O-O-O 13. O-O-O Na5 14. Qc2 Nc4 15. Bg5 Kb8 16. Bxc4 Qxc4 {½-½ (39) Carlsen,M (2847)-Ding,L (2799) chess24.com INT 2021}) 10... Nc6 {[%emt 0:01:22]} 11. O-O {[%emt 0:01:36]} O-O {[%emt 0:00:25]} 12. Bd3 {[%emt 0:05:17]} Rab8 {[%emt 0:14:34]} 13. Nf3 {[%emt 0:06:22]} b5 {[%emt 0:00:32]} 14. a3 {[%emt 0:02:25]} ({Don't blunder} 14. Bxb5 $2 a6 15. a4 Na5 $19) 14... h6 {[%emt 0:01:41]} 15. Qc2 {[%emt 0:02:18]} a5 {[%emt 0:08:12]} 16. Qe2 {[%emt 0:02:34]} b4 {[%emt 0:02:54]} 17. axb4 {[%emt 0:00:12]} axb4 {[%emt 0:00:09]} 18. Bd2 {[%emt 0:07:22]} bxc3 {[%emt 0:05:53]} 19. bxc3 {[%emt 0:01:54]} Na5 {[%emt 0:03:41][%cal Bc6a5,Ba5b3,Bb3d2][%mdl 32]} 20. Rfb1 {[%emt 0:22:53]} Nb3 {[%emt 0:03:25] Pair of Knights!} 21. Ra2 {[%emt 0:00:58]} ({Better is} 21. Ra6 $15) 21... Nxd2 $17 {[%emt 0:08:01]} 22. Qxd2 {[%emt 0:00:10]} Rxb1+ {[%emt 0:00:18]} 23. Bxb1 {[%emt 0:00:08]} Rc8 {[%emt 0:00:05]} 24. Qd3 {[%emt 0:05:56]} ({White should play} 24. Qe2 $15) 24... Qc4 {[%emt 0:03:53]} (24... Qxc3 $2 25. Rc2 Ne4 26. Rxc3 $18) 25. Qxc4 {[%emt 0:04:17]} Rxc4 {[%emt 0:00:02]} 26. Ne5 {[%emt 0:00:21]} Rxc3 {[%emt 0:01:08] [#] White must now prevent ...Rc1+.} 27. Ra8+ {[%emt 0:00:12]} Bf8 {[%emt 0:00:01] Threatens to win with ...Rc1+.} 28. Bd3 {[%emt 0:03:49]} Rc7 {[%emt 0:00:15]} 29. f4 {[%emt 0:03:31]} Nh5 {[%emt 0:08:37]} 30. f5 {[%emt 0:01:46] Prevents g6.} Nf4 {[%emt 0:02:09]} 31. fxe6 {[%emt 0:03:45]} Nxe6 {[%emt 0:03:38]} 32. Ra5 {[%emt 0:02:05]} (32. Bf5 $15 Nxd4 33. Bg4) 32... Nxd4 {[%emt 0:00:21]} 33. Rxd5 {[%emt 0:00:04]} Ne6 {[%emt 0:00:35]} 34. Rd7 {[%emt 0:00:52]} Rc1+ {[%emt 0:01:15]} 35. Kh2 {[%emt 0:00:06]} Re1 {[%emt 0:02:29]} 36. Nf3 {[%emt 0:01:32]} Rc1 {[%emt 0:01:14]} 37. Ne5 $1 {[%emt 0:00:09]} Re1 {[%emt 0:01:15]} 38. Nf3 {[%emt 0:00:02]} Re3 {[%emt 0:00:05] [#] Hoping for ...Nc5.} 39. Bc4 {[%emt 0:01:02]} Bc5 {[%emt 0:00:50]} 40. Kg3 {[%emt 0:00:00]} Re4 {[%emt 0:00:00]} 41. Bd5 {[%emt 0:03:20]} Re2 {[%emt 0:03:54]} 42. Bc4 {[%emt 0:00:59]} Bf2+ {[%emt 0:01:00]} 43. Kh2 {[%emt 0:00:17]} Re4 {[%emt 0:00:27]} 44. Bd5 {[%emt 0:01:55]} Re3 {[%emt 0:00:12]} 45. Bc4 {[%emt 0:02:53]} Ra3 {[%emt 0:02:04]} 46. Rd2 {[%emt 0:02:11]} Bb6 {[%emt 0:02:38]} 47. Rd3 {[%emt 0:03:01]} Bc7+ {[%emt 0:00:25]} 48. g3 {[%emt 0:02:08]} Ra4 {[%emt 0:01:50]} 49. Bd5 {[%emt 0:00:56]} Nc5 {[%emt 0:01:33]} 50. Re3 {[%emt 0:00:56]} Kf8 $1 {[%emt 0:00:39] Inhibits Re8+.} 51. Kg2 {[%emt 0:01:00]} Rb4 {[%emt 0:00:41]} 52. Ne5 {[%emt 0:02:32]} Rb2+ {[%emt 0:03:20]} 53. Kf3 {[%emt 0:00:14]} Bxe5 {[%emt 0:01:56]} 54. Rxe5 $15 {[%emt 0:00:28][%cal Od5f7][%mdl 4096] Endgame KRB-KRN} Nd7 {[%emt 0:01:25]} 55. Re2 {[%emt 0:00:34]} Rb5 {[%emt 0:00:10]} 56. Be4 {[%emt 0:02:27]} Ne5+ {[%emt 0:00:22]} 57. Kg2 {[%emt 0:01:02]} Ke7 {[%emt 0:00:32]} 58. Bc6 {[%emt 0:00:24]} Rc5 {[%emt 0:00:06]} 59. Be4 {[%emt 0:00:04]} Ke6 {[%emt 0:00:27]} 60. Rf2 {[%emt 0:00:05]} Rc3 {[%emt 0:01:29]} 61. Bf5+ {[%emt 0:00:05]} Ke7 {[%emt 0:00:11]} 62. Be4 {[%emt 0:00:05]} Re3 {[%emt 0:00:38]} 63. Bd5 {[%emt 0:00:13]} h5 {[%emt 0:02:02]} (63... Rd3 $17 64. Be4 Re3) 64. Rf5 $1 $11 {[%emt 0:00:42] The position is equal.} g6 {[%emt 0:01:18]} 65. Kf2 {[%emt 0:01:20]} gxf5 {[%emt 0:00:21]} 66. Kxe3 {[%emt 0:00:10] KB-KN} Kf6 {[%emt 0:00:11]} 67. Kf4 {[%emt 0:03:10]} Ng6+ {[%emt 0:00:32]} 68. Ke3 {[%emt 0:00:45]} Nf8 {[%emt 0:01:38]} 69. Bf3 {[%emt 0:02:15]} Kg6 {[%emt 0:00:15]} 70. h4 {[%emt 0:02:12]} Ne6 {[%emt 0:00:14]} 71. Be2 {[%emt 0:00:21]} Nc7 {[%emt 0:01:36]} 72. Bf3 {[%emt 0:01:04]} Ne8 {[%emt 0:00:49]} 73. Be2 {[%emt 0:00:49]} Nf6 {[%emt 0:00:28]} 74. Kf4 {[%emt 0:01:12]} Nd5+ {[%emt 0:00:09]} 75. Ke5 {[%emt 0:00:26]} Ne3 {[%emt 0:00:33]} 76. Kf4 {[%emt 0:00:58]} Nd5+ {[%emt 0:01:15]} 77. Ke5 {[%emt 0:00:10]} Ne7 {[%emt 0:00:37]} 78. Bd3 {[%emt 0:00:45]} Nc6+ {[%emt 0:00:08]} 79. Kf4 {[%emt 0:00:41]} Nd4 {[%emt 0:00:06]} 80. Ke5 {[%emt 0:00:27] Weighted Error Value: White=0.08 (flawless) /Black=0.08 (flawless)} 1/2-1/2

[Event "31st Kavala Open-A 2022"]
[Site "Kavala"]
[Date "2022.08.02"]
[Round "9.1"]
[White "Kourkoulos-Arditis, Stamatis"]
[Black "Pijpers, Arthur"]
[Result "1-0"]
[ECO "D75"]
[WhiteElo "2535"]
[BlackElo "2458"]
[Annotator "RC"]
[PlyCount "81"]
[EventDate "2022.07.27"]
[EventType "swiss"]
[EventCountry "GRE"]
[SourceTitle "playchess.com"]
[Source "ChessBase"]
[SourceQuality "1"]
[TimeControl "40/5400+30:1800+30"]

1. d4 {[%emt 0:00:03]} Nf6 {[%emt 0:00:05]} 2. c4 {[%emt 0:00:04]} g6 {[%emt 0:00:03]} 3. Nf3 {[%emt 0:00:05]} Bg7 {[%emt 0:00:05]} 4. g3 {[%emt 0:00:04]} O-O {[%emt 0:01:30]} 5. Bg2 {[%emt 0:00:03]} c5 {[%emt 0:00:05]} 6. Nc3 {[%emt 0:00:31]} d5 {[%emt 0:00:54]} 7. cxd5 {[%emt 0:09:11]} Nxd5 {[%emt 0:00:29]} 8. Nxd5 {[%emt 0:00:05]} Qxd5 {[%emt 0:00:06]} 9. O-O {[%emt 0:00:09]} cxd4 {[%emt 0:09:26]} 10. Be3 {[%emt 0:01:44]} Nc6 {[%emt 0:00:30]} 11. Nxd4 {[%emt 0:00:44]} Qc4 {[%emt 0:00:05]} 12. b3 {[%emt 0:32:00]} Qa6 {[%emt 0:06:38]} 13. Nxc6 {[%emt 0:00:13]} bxc6 {[%emt 0:00:05]} 14. Rc1 {[%emt 0:00:07]} Qxa2 {[%emt 0:08:46]} 15. Bxc6 {[%emt 0:00:28]} Rb8 {[%emt 0:00:07]} 16. Rc2 {[%emt 0:02:06]} Qxb3 {[%emt 0:02:02]} 17. Bd5 {[%emt 0:03:57]} Qa4 {[%emt 0:03:47]} 18. Rxc8 {[%emt 0:00:21]} Qxd1 {[%emt 0:03:40]} 19. Rxf8+ {[%emt 0:00:04]} Kxf8 {[%emt 0:00:05]} 20. Rxd1 {[%emt 0:00:05]} a5 {[%emt 0:00:04]} 21. Bc6 {[%emt 0:04:35]} Bc3 {[%emt 0:07:20]} 22. Rd3 {[%emt 0:01:22]} Bb4 {[%emt 0:00:15]} 23. Bh6+ {[%emt 0:01:52]} Kg8 {[%emt 0:00:04]} 24. Rd7 {[%emt 0:00:34]} Rc8 {[%emt 0:00:17]} 25. Ba4 {[%emt 0:03:41]} e6 {[%emt 0:00:29]} 26. Ra7 {[%emt 0:00:21]} Rd8 {[%emt 0:00:41]} 27. Kg2 {[%emt 0:00:09]} Bd2 {[%emt 0:00:50]} 28. Bxd2 {[%emt 0:00:55]} Rxd2 {[%emt 0:00:05]} 29. e3 {[%emt 0:00:05]} Rd5 {[%emt 0:00:19]} 30. Be8 {[%emt 0:00:04]} Kf8 {[%emt 0:00:07]} 31. Ba4 {[%emt 0:01:00]} Rc5 {[%emt 0:00:37]} 32. h4 {[%emt 0:01:10]} h5 {[%emt 0:01:47]} 33. Kf3 {[%emt 0:00:25]} Rd5 {[%emt 0:00:16]} 34. Rb7 {[%emt 0:03:29]} Rc5 {[%emt 0:02:22]} 35. Rb5 {[%emt 0:00:08]} Rxb5 {[%emt 0:00:04]} 36. Bxb5 {[%emt 0:00:03]} Ke7 {[%emt 0:00:05]} 37. Ke4 {[%emt 0:00:05]} Kd6 {[%emt 0:00:11]} 38. f4 {[%emt 0:01:18]} Ke7 {[%emt 0:00:32]} 39. Kd4 {[%emt 0:00:24]} Kd6 {[%emt 0:01:10]} 40. e4 {[%emt 0:00:00]} Ke7 {[%emt 0:00:00]} 41. e5 {[%emt 0:00:17]} 1-0

[Event "31st Kavala Open-A 2022"]
[Site "Kavala"]
[Date "2022.08.02"]
[Round "9.2"]
[White "Karthik Venkataraman"]
[Black "Beerdsen, Thomas"]
[Result "1/2-1/2"]
[ECO "E15"]
[WhiteElo "2483"]
[BlackElo "2500"]
[Annotator "RC"]
[PlyCount "58"]
[EventDate "2022.07.27"]
[EventType "swiss"]
[EventCountry "GRE"]
[SourceTitle "playchess.com"]
[Source "ChessBase"]
[SourceQuality "1"]
[TimeControl "40/5400+30:1800+30"]

1. d4 {[%emt 0:03:57]} Nf6 {[%emt 0:01:19]} 2. c4 {[%emt 0:00:05]} e6 {[%emt 0:00:09]} 3. Nf3 {[%emt 0:00:04]} b6 {[%emt 0:00:06]} 4. g3 {[%emt 0:00:11]} Ba6 {[%emt 0:00:06]} 5. b3 {[%emt 0:00:13]} Bb4+ {[%emt 0:00:06]} 6. Bd2 {[%emt 0:00:04]} Be7 {[%emt 0:00:06]} 7. Nc3 {[%emt 0:01:36]} d5 {[%emt 0:01:41]} 8. cxd5 {[%emt 0:00:07]} exd5 {[%emt 0:00:06]} 9. Bg2 {[%emt 0:00:05]} O-O {[%emt 0:00:06]} 10. O-O {[%emt 0:00:08]} Re8 {[%emt 0:02:10]} 11. Ne5 {[%emt 0:02:15]} c5 {[%emt 0:10:52]} 12. Bg5 {[%emt 0:12:57]} Bb7 {[%emt 0:13:31]} 13. dxc5 {[%emt 0:02:37]} bxc5 {[%emt 0:02:08]} 14. Rc1 {[%emt 0:00:14]} Na6 {[%emt 0:06:27]} 15. Nc4 {[%emt 0:03:42]} Ne4 {[%emt 0:24:21]} 16. Nxe4 {[%emt 0:04:44]} dxe4 {[%emt 0:01:15]} 17. Bxe7 {[%emt 0:02:01]} Qxe7 {[%emt 0:02:48]} 18. Qc2 {[%emt 0:02:37]} Nb4 {[%emt 0:02:23]} 19. Qb2 {[%emt 0:00:53]} Nc6 {[%emt 0:03:09]} 20. Rfd1 {[%emt 0:21:36]} Rad8 {[%emt 0:00:53]} 21. Ne3 {[%emt 0:00:46]} Nd4 {[%emt 0:05:47]} 22. b4 {[%emt 0:05:30]} Qf6 {[%emt 0:01:59]} 23. Rd2 {[%emt 0:00:21]} cxb4 {[%emt 0:06:38]} 24. Qxb4 {[%emt 0:03:11]} Ba6 {[%emt 0:02:41]} 25. Bf1 {[%emt 0:01:21]} Rd7 {[%emt 0:03:30]} 26. Rcd1 {[%emt 0:00:43]} Red8 {[%emt 0:00:28]} 27. Ng4 {[%emt 0:11:06]} Qd6 {[%emt 0:01:22]} 28. Qa5 {[%emt 0:02:51]} Qb6 {[%emt 0:01:18]} 29. Qxb6 {[%emt 0:00:53]} axb6 {[%emt 0:00:08]} 1/2-1/2

[Event "31st Kavala Open-A 2022"]
[Site "Kavala"]
[Date "2022.08.02"]
[Round "9.3"]
[White "Vrolijk, Liam"]
[Black "Bharath Subramaniyam H"]
[Result "1/2-1/2"]
[ECO "A62"]
[WhiteElo "2464"]
[BlackElo "2479"]
[Annotator "RC"]
[PlyCount "94"]
[EventDate "2022.07.27"]
[EventType "swiss"]
[EventCountry "GRE"]
[SourceTitle "playchess.com"]
[Source "ChessBase"]
[SourceQuality "1"]
[TimeControl "40/5400+30:1800+30"]

1. d4 {[%emt 0:00:19]} Nf6 {[%emt 0:00:29]} 2. c4 {[%emt 0:00:07]} e6 {[%emt 0:00:59]} 3. g3 {[%emt 0:00:19]} c5 {[%emt 0:01:57]} 4. d5 {[%emt 0:00:10]} exd5 {[%emt 0:01:54]} 5. cxd5 {[%emt 0:00:09]} d6 {[%emt 0:01:42]} 6. Nc3 {[%emt 0:00:08]} g6 {[%emt 0:00:22]} 7. Bg2 {[%emt 0:00:08]} Bg7 {[%emt 0:00:38]} 8. Nf3 {[%emt 0:00:07]} O-O {[%emt 0:00:32]} 9. O-O {[%emt 0:00:07]} a6 {[%emt 0:00:27]} 10. a4 {[%emt 0:00:07]} Re8 {[%emt 0:03:07]} 11. Re1 {[%emt 0:02:04]} Ne4 {[%emt 0:04:57]} 12. Nxe4 {[%emt 0:00:19]} Rxe4 {[%emt 0:00:00]} 13. Qc2 {[%emt 0:00:41]} Rb4 {[%emt 0:14:36]} 14. Ra2 {[%emt 0:01:54]} b5 {[%emt 0:02:00]} 15. axb5 {[%emt 0:02:31]} Rxb5 {[%emt 0:12:06]} 16. Bd2 {[%emt 0:03:33]} Bg4 {[%emt 0:08:01]} 17. Ng5 {[%emt 0:12:54]} h6 {[%emt 0:04:02]} 18. Qc4 {[%emt 0:12:34]} hxg5 {[%emt 0:02:13]} 19. Qxg4 {[%emt 0:00:09]} Bf6 {[%emt 0:05:20]} 20. h4 {[%emt 0:19:17]} gxh4 {[%emt 0:11:03]} 21. gxh4 {[%emt 0:01:09]} Nd7 {[%emt 0:05:58]} 22. h5 {[%emt 0:01:18]} Ne5 {[%emt 0:04:08]} 23. Qh3 {[%emt 0:00:45]} Qd7 {[%emt 0:00:50]} 24. hxg6 {[%emt 0:02:45]} Qxh3 {[%emt 0:07:30]} 25. gxf7+ {[%emt 0:00:11]} Kxf7 {[%emt 0:00:37]} 26. Bxh3 {[%emt 0:00:08]} Nc4 {[%emt 0:00:30]} 27. Be6+ {[%emt 0:08:21]} Ke7 {[%emt 0:01:29]} 28. Bc1 a5 {[%emt 0:01:23]} 29. Kg2 Rh8 {[%emt 0:07:31]} 30. Ra4 {[%emt 0:01:30]} Nxb2 {[%emt 0:00:19]} 31. Bxb2 {[%emt 0:10:00]} Bxb2 {[%emt 0:00:00]} 32. Rb1 Rhb8 {[%emt 0:00:00]} 33. Rh1 Rh8 {[%emt 0:01:20]} 34. Rb1 {[%emt 0:00:19]} Rhb8 {[%emt 0:00:00]} 35. Rh1 {[%emt 0:08:03]} Rh8 {[%emt 0:00:43]} 36. Rb1 {[%emt 0:01:52]} Rb7 {[%emt 0:04:19]} 37. Rxa5 {[%emt 0:02:59]} c4 {[%emt 0:01:18]} 38. Ra4 {[%emt 0:00:11]} c3 {[%emt 0:00:00]} 39. Rc4 Ra7 {[%emt 0:05:02]} 40. Kf3 {[%emt 0:01:02]} Rf8+ {[%emt 0:02:30]} 41. Ke3 {[%emt 0:01:31]} Ra3 {[%emt 0:00:00]} 42. Kd3 Rxf2 {[%emt 0:00:00]} 43. Rc7+ Ke8 {[%emt 0:02:03]} 44. Rg1 {[%emt 0:12:35]} c2+ {[%emt 0:00:00]} 45. Kxc2 {[%emt 0:00:35]} Rxe2+ {[%emt 0:00:00]} 46. Kd1 {[%emt 0:00:06]} Ra1+ {[%emt 0:00:00]} 47. Kxe2 {[%emt 0:00:06]} Rxg1 {[%emt 0:00:00]} 1/2-1/2